Cogmind - Beta 9.6 @@@ ROGUE MODE // 2020.08.29 @ 03:30:37 Player: Cracklepappy Result: Destroyed by as-22794 with Assembled Maul Performance ------------- Evolutions (0) 0 Regions Visited (2) 400 Robots Destroyed (26) 130 Value Destroyed (616) 616 Prototype IDs (0) 0 Alien Tech Used (0) 0 Bonus (2) 2 TOTAL SCORE: 1148 Bonus ------- High Alert Combat Kills 2 Cogmind --------- Core Integrity 0/250 Matter 268/300 Energy 87/100 System Corruption 1% Temperature Cool (0) Movement Treading (160) Location -10/Mines Parts ------- > --- POWER (1) -------- (None) > --- PROPULSION (2) --- Light Treads Light Treads > --- UTILITY (2) ------ Small Storage Unit Small Storage Unit > --- WEAPON (2) ------- Grenade Launcher Grenade Launcher > --- INVENTORY (8) ---- Compact Wheel Compact Wheel Assault Rifle Light Assault Rifle Grenade Launcher Mining Laser Peak State ------------ > --- POWER ------------ Ion Engine > --- PROPULSION ------- Wheel Compact Wheel > --- UTILITY ---------- Small Storage Unit Small Storage Unit > --- WEAPON ----------- Assault Rifle Light Assault Rifle > --- INVENTORY -------- Light Treads Light Treads Small Laser [Rating: 7] Favorites ----------- Power Ion Engine Engine Ion Engine Propulsion Wheel Treads Light Treads Wheel Wheel Utility Small Storage Unit Storage Small Storage Unit Weapon EM Pulse Gun Energy Gun EM Pulse Gun Ballistic Gun Light Assault Rifle Launcher Grenade Launcher Build | -11 -10 -10 ------- Run | Scr Mat Min Slots Evolved . | . . . Power . | . . . Propulsion . | . . . Utility . | . . . Weapon . | . . . Parts Attached 17 | 7 8 2 Power 1 | 1 . . Engine 1 | 1 . . Core . | . . . Reactor . | . . . Propulsion 6 | 2 4 . Treads 2 | . 2 . Leg . | . . . Wheel 4 | 2 2 . Hover . | . . . Flight . | . . . Utility 2 | 2 . . Device . | . . . Storage 2 | 2 . . Processor . | . . . Hackware . | . . . Protection . | . . . Artifact . | . . . Weapon 8 | 2 4 2 Energy Gun 3 | . 3 . Energy Cannon . | . . . Ballistic Gun 3 | 2 1 . Ballistic Cannon . | . . . Launcher 2 | . . 2 Special Weapon . | . . . Impact Weapon . | . . . Slashing Weapon . | . . . Piercing Weapon . | . . . Special Melee Weapon . | . . . Unidentified Prototypes . | . . . Parts Lost 8 | . 8 . Power 1 | . 1 . Propulsion 4 | . 4 . Utility . | . . . Weapon 3 | . 3 . Highest Loss Streak 8 | . 8 . Average Slot Usage (%) 81 | . 81 85 Engine 6 | . 7 . Treads 8 | . 7 28 Wheel 14 | . 15 . Storage 28 | . 28 28 Energy Gun 10 | . 10 . Ballistic Gun 10 | . 10 14 Naked Turns . | . . . Heaviest Build 17 | 16 17 14 Greatest Support 40 | 26 40 40 Greatest Overweight (x) 2 | . 2 . Average Overweight (x) . | . . . Largest Inventory Capacity 8 | 8 8 8 Average Capacity 7 | 6 8 8 Most Carried 8 | 8 8 6 Average Carried 6 | 4 7 6 Final Capacity 8 | 8 8 8 Final Carried 8 | 8 7 6 Class Distribution -------------------- 100% | Mutant Dominant Class ---------------- Mutant | -10/Materials Mutant | -10/Mines Resources | -11 -10 -10 ----------- Run | Scr Mat Min Matter Collected 409 | 294 84 31 Remotely . | . . . Salvage Created 769 | 102 622 45 Parts 57 | 12 41 4 Haulers Intercepted . | . . . Recyclers Shooed . | . . . Parts Field Recycled . | . . . Retrieved Matter . | . . . Parts Self-Destructed . | . . . Prevented . | . . . Kills | -11 -10 -10 ------- Run | Scr Mat Min Combat Hostiles Destroyed 21 | . 19 2 Guns 16 | . 16 . AOE 5 | . 3 2 Classes Destroyed 5 | 2 3 . Tunneler 2 | 2 . . Recycler 1 | 1 . . Watcher 2 | . 2 . Swarmer 9 | . 9 . Grunt 12 | . 10 2 Best Kill Streak 9 | 3 9 2 Combat Bots Only 9 | . 9 2 Max Kills in Single Turn 2 | 1 2 2 Gunslinging 1 | . 1 . Exploded 2 | . 1 2 Melee . | . . . Uniques/NPCs Destroyed . | . . . Combat | -11 -10 -10 -------- Run | Scr Mat Min Damage Taken 798 | . 714 84 Core 251 | . 217 34 Absorbed by Shields . | . . . Core Remaining (%) 100 | 100 . . Volleys Fired 61 | 6 53 2 Largest 2 | 2 2 2 Hottest 80 | 40 80 50 Shots Fired 104 | 12 88 4 Gun 102 | 12 88 2 Cannon . | . . . Launcher 2 | . . 2 Special . | . . . Kinetic 42 | 12 28 2 Thermal . | . . . Explosive 2 | . . 2 Electromagnetic 60 | . 60 . Robot Hit Streak 10 | 4 10 4 Robot Miss Streak 6 | 3 6 . Penetration Max . | . . . Secondary Targets 2 | . 2 . Max Gunslinging Chain 1 | . 1 . Shots Hit Robots 58 | 5 49 4 Core Hits 41 | 5 30 6 Critical Hits . | . . . Critical Kills . | . . . Critical Parts Destroyed . | . . . Melee Attacks . | . . . Impact . | . . . Slashing . | . . . Piercing . | . . . Sneak Attacks . | . . . Combat Hostiles . | . . . Follow-up Attacks . | . . . Damage Inflicted 1074 | 77 839 158 Guns 714 | 77 618 19 Cannons . | . . . Explosions 353 | . 214 139 Melee . | . . . Ramming 7 | . 7 . Kinetic 225 | 77 129 19 Thermal 110 | . 110 . Explosive 139 | . . 139 Electromagnetic 593 | . 593 . Impact . | . . . Slashing . | . . . Piercing . | . . . Highest Corruption 1 | . 1 1 Average Corruption 1 | . 1 1 Corruption Purged . | . . . Effects 2 | . 2 . Message Errors 1 | . 1 . Targeting Errors 1 | . 1 . Overload Shots . | . . . Overflow Damage . | . . . Projectiles . | . . . Explosions . | . . . Melee . | . . . Knockbacks . | . . . Impact . | . . . Kinetic . | . . . Secondary . | . . . Self-Inflicted Damage 42 | . 42 . Shots 2 | . 2 . Rammed 1 | . 1 . Targets Rammed 1 | . 1 . Kicked . | . . . Crushed . | . . . Highest Temperature 220 | . 220 21 Average Temperature 63 | . 64 13 Received Heat Transfer 171 | . 141 30 Siege Activations . | . . . Robots Corrupted . | . . . Combat Hostiles . | . . . Parts Fried 2 | . 2 . Impact Corruptions . | . . . Robots Melted . | . . . Combat Hostiles . | . . . Parts Melted . | . . . Heat Transferred 150 | . 150 . Parts Sabotaged . | . . . Parts Stolen . | . . . Parts Stripped . | . . . Power Chain Reactions 3 | . 3 . Missiles Intercepted . | . . . Alert | -11 -10 -10 ------- Run | Scr Mat Min Peak Influence 401 | 15 401 143 Average Influence 148 | 6 171 120 Maximum Alert Level 2 | . 2 . Low Security (%) 53 | 100 44 100 Level 1 45 | . 53 . Level 2 1 | . 1 . Level 3 . | . . . Level 4 . | . . . Level 5 . | . . . High Security . | . . . Max Security . | . . . Squads Dispatched 5 | . 5 . Investigation 3 | . 3 . Extermination . | . . . Reinforcement 2 | . 2 . Assault . | . . . Garrison . | . . . Intercept . | . . . Construction Impeded . | . . . Haulers Reinforced . | . . . Stealth | -11 -10 -10 --------- Run | Scr Mat Min Distress Signals . | . . . Communications Jammed . | . . . Distress Signals . | . . . Times Spotted 36 | . 28 8 Peak Tracking Total 9 | . 7 9 Tactical Retreats 2 | . 2 . Traps | -11 -10 -10 ------- Run | Scr Mat Min Traps Triggered 3 | . 3 . Indirectly 3 | . 3 . Trap Hack Attempts . | . . . Triggered . | . . . Disarmed . | . . . Reprogrammed . | . . . Reused . | . . . Traps Extracted . | . . . Installed . | . . . Triggered . | . . . Machines | -11 -10 -10 ---------- Run | Scr Mat Min Machines Disabled 4 | . 4 . Max in Single Turn 1 | . 1 . Machines Sabotaged . | . . . Garrisons Compromised . | . . . Overloaded Fab Kills . | . . . Fab Network Shutdowns . | . . . Hacking | -11 -10 -10 --------- Run | Scr Mat Min Machines Accessed 2 | . 2 . Terminals 2 | . 2 . Fabricators . | . . . Repair Stations . | . . . Recycling Units . | . . . Scanalyzers . | . . . Garrison Access . | . . . Total Hacks 4 | . 4 . Successful 3 | . 3 . Failed 1 | . 1 . Catastrophic . | . . . Database Lockouts . | . . . Manual . | . . . Terminals 4 | . 4 . Fabricators . | . . . Repair Stations . | . . . Recycling Units . | . . . Scanalyzers . | . . . Garrison Access . | . . . Terminal Hacks 3 | . 3 . Unreport Threat 1 | . 1 . Locate Traps 2 | . 2 . Fabricator Hacks . | . . . Repair Station Hacks . | . . . Recycling Unit Hacks . | . . . Scanalyzer . | . . . Garrison Access Hacks . | . . . Unauthorized Hacks . | . . . Terminals . | . . . Fabricators . | . . . Repair Stations . | . . . Recycling Units . | . . . Scanalyzers . | . . . Garrison Access . | . . . Data Cores Recovered . | . . . Used . | . . . Hacking Detections 2 | . 2 . Full Trace Events . | . . . Feedback Events . | . . . Feedback Blocked . | . . . Robot Schematics Acquired . | . . . Robots Built . | . . . Matter . | . . . Time . | . . . Total Robot Build Rating . | . . . Part Schematics Acquired . | . . . Parts Built . | . . . Matter . | . . . Time . | . . . Total Part Build Rating . | . . . Parts Repaired . | . . . Time . | . . . Parts Recycled . | . . . Recycled Matter . | . . . Retrieved Matter . | . . . Retrieved Components . | . . . Parts Scanalyzed . | . . . Part Schematics Acquired . | . . . Parts Damaged . | . . . Bothacking | -11 -10 -10 ------------ Run | Scr Mat Min Used RIF Installer . | . . . Robots Hacked . | . . . Non-combat . | . . . Combat . | . . . Robot Hacks Applied . | . . . Relay Couplers Released . | . . . Robots Rewired . | . . . Allies Hacked . | . . . Hacks Repelled . | . . . Allies | -11 -10 -10 -------- Run | Scr Mat Min Total Allies . | . . . Largest Group . | . . . Highest-Rated Group . | . . . Highest-Rated Ally . | . . . Total Orders . | . . . Ally Attacks . | . . . Total Damage . | . . . Kills . | . . . Allies Corrupted . | . . . Allies Melted . | . . . Intel | -11 -10 -10 ------- Run | Scr Mat Min Robot Analysis Total . | . . . Derelict Logs Recovered . | . . . Drone Launches . | . . . Drone Recoveries . | . . . Exploration | -11 -10 -10 ------------- Run | Scr Mat Min Turns Passed 767 | 97 644 26 Spaces Moved 486 | 69 406 11 Core 45 | 1 44 . Treads 123 | . 112 11 Legs . | . . . Wheels 318 | 68 250 . Hover . | . . . Flight . | . . . Fastest Speed 50 | 50 80 160 Average Speed 112 | 90 115 160 Slowest Speed 160 | 100 160 160 Overloaded Moves . | . . . Propulsion Burnouts . | . . . Robots Hopped . | . . . Cave-ins Triggered . | . . . Exploration Rate (%) 28 | 4 72 9 Regions Visited 2 Branch Regions 1 Pre-discovered Areas . | . . . Known Exits Taken . | . . . Unknown Exits Taken 2 | 1 1 . Scrap Searched 1 | . . 1 Spaces Dug . | . . . Terrain Destroyed 22 | . 5 17 Melee . | . . . Projectile . | . . . AOE 22 | . 5 17 Actions | -11 -10 -10 --------- Run | Scr Mat Min Total 603 | 89 499 15 Wait 24 | . 24 . Move 484 | 68 405 11 Hop . | . . . Pick Up 13 | 8 5 . Fast Attach 10 | 7 3 . Attach 6 | . 5 1 Detach . | . . . Swap 1 | . . 1 Drop 3 | . 3 . Fire 61 | 6 53 2 Melee . | . . . Ram 1 | . 1 . Kick . | . . . Crush . | . . . Escape Stasis . | . . . Rewire . | . . . Trap . | . . . Miscellaneous . | . . . Route ------- -11/Scrapyard -10/Materials (discovered 3 exits: [*Mat x2] / [*Min]) -10/Mines History --------- Turn | Location | Event 14 | -11/Scrapyard | Discovered new exit (range 15) 98 | -11/Scrapyard | Entered Materials 249 | -10/Materials | Discovered new exit (range 16) 296 | -10/Materials | Discovered new exit (range 11) 306 | -10/Materials | Build established: Mutant 457 | -10/Materials | Destroyed 9 combat bots 468 | -10/Materials | Core integrity fell below 50% 485 | -10/Materials | Core integrity fell below 20% 498 | -10/Materials | Lost 8 parts (1p4n3w) 523 | -10/Materials | Discovered new exit (range 16) 742 | -10/Materials | Entered Mines 755 | -10/Mines | Assembled infested the area 768 | -10/Mines | Destroyed by as-22794 with Assembled Maul Last Messages --------------- 00610_ K-01 Serf collects debris. 00718_ R-06 Scavenger collects Aluminum Leg. 00721_ K-01 Serf collects debris. 00722_ R-06 Scavenger collects Sml. Laser. 00726_ R-06 Scavenger collects Ion Engine. 00726_ K-01 Serf collects debris. 00730_ R-06 Scavenger collects Aluminum Leg. 00733_ K-01 Serf collects debris. LOCATION=UNKNOWN GOAL=ESCAPE 00746_ G-47 Trooper destroyed. 00746_ G-34 Mercenary destroyed. 00755_ ALERT: Infestation in the mines, dispatching Demolisher response squad. 00762_ Searching scrap... 00762_ Found 31 Matter. 00762_ Found Beam Cannon. 00762_ Found Lgt. Assault Rifle. 00762_ Found Heat Sink. 00763_ Acquired 31 matter. Map ----- +----------------------------------------------------+ | ??????????????????????????????????????????????? | | ??????????????????????????????????????????????? | | ??????????????????????????????????????????????? | | ??????????????????????????????????????????????? | | ??????????????????????????????????????????????? | | ??????????????????????????????????????????????? | | ??????????????????????????????????????????????? | | ??????????????????????????????????????????????? | | ??????????????????????????????????????????????? | | ??????????????????????????????????????????????? | | ??????????????????????????????????????????????? | | ??????????????????????????????????????????????? | | ??????????????????????????????????????????????? | | ??????????????????????????????????????????????? | | ??????????????????????????????????????????????? | | ??????????????????????????????????? ??????????? | | ??????????????????????????????????? ??????????? | | ??????????????????????????????????? #???? #???? | | ??????????????????????????????????? ???? #???? | | ??????????????????????????????????? #??? #???? | | ???????????????????###????????????? #??# #???? | | ??????????????????## #???????????? #? #???? | | ??????????????????# #??????????# #? ????? | | ?????????????????## #####???### ## #?????? | | ?????????????????# #???# #?????? | | ?????????????# a aa aa@ ##### #?????? | | ?????????????# a #]! #?????? | | ???????????# """ # [ #??????? | | ???????????????? """ ?### ##??????? | | ?????????????????""" ???## = #???????? | | ????????????????? ????# =% #???????? | | ??????????????? ## ????# !%= ##???????? | | ???????????????###??##?????# ##????????? | | ???????????????????????????# # # ##?????????? | | ???????????????????????????#########??????????? | | ??????????????????????????????????????????????? | | | | | | | | | | | | | | | | | | | | | | | | | | | | | +----------------------------------------------------+ Best States ------------- Heat Dissipation 25 Energy Generation 10 Energy Capacity 250 Matter Stores 300 Matter Capacity 300 Sight Range 16 Terrain Scan Density 10 Evasion (%) 44 Recoil Reduction 2 Item Schematics ----------------- None Robot Schematics ------------------ None Fabricated ------------ Nothing Alien Tech Used ----------------- None Achievements -------------- Party Time Challenges ------------ None Game ------ Seed TransmissionRocketClaws Manual? 0 Play Time 00:07:32 Cumulative 152.7 hours Start 2020.08.29 @ 03:21:14 End 2020.08.29 @ 03:30:37 Sessions 1 Manual Loads 0 Difficulty Rogue Special Mode None Game No. 184 Rogue 184 Adventurer 0 Explorer 0 Win Type - Total 2 Types 2/0/0/0/0/0/0 Lore% 61 Gallery% 71 Achievement% 53 Wizard Run 0 Options --------- ASCII 0 Keyboard 0 Movement Numpad Keybinds 0 Fullscreen 2 Font 24/Smallcaps Map View 76x50 Tactical HUD 1 Map Filters NONE Filters NONE Steam 1 RUN: 75396a6a-33a9-4b23-823a-4e2c112f2942